bitfinex/quotes_ETHUSD_20241023
["timestamp","ask_amount","ask_price","bid_price","bid_amount"]
[1729695962054,0.94121817,2559.1,2558.4,0.8059]
[1729695962231,0.94121817,2559.1,2558.5,0.55]
[1729695962440,0.84351895,2559.1,2558.6,0.07815975]
[1729695962640,0.84351895,2559.1,2558.7,0.55]
[1729695962861,0.09769969,2559.0,2558.6,0.55]
[1729695963172,0.18668768,2559.0,2558.6,0.55]
[1729695965637,0.08898799,2559.0,2558.8,1.3596]
[1729695965952,0.09768914,2559.4,2558.8,1.3596]
[1729695966146,0.08572307,2558.9,2558.8,1.3596]
[1729695966331,0.09768489,2559.6,2558.8,1.3596]
[1729695966530,0.09768489,2559.6,2559.1,0.05861044]
[1729695966736,0.08572307,2559.5,2559.1,0.05861044]
[1729695966970,0.08572307,2559.5,2559.2,0.55]
[1729695967172,0.08572307,2559.5,2559.4,0.55]
[1729695967679,0.08055314,2559.5,2559.2,0.55]
[1729695968267,3.57766371,2559.8,2559.2,0.55]
[1729695968477,0.08055314,2559.4,2559.2,0.55]
[1729695968653,3.57766371,2559.8,2559.2,0.55]
[1729695968833,0.08062637,2559.3,2559.2,0.55]
[1729695969033,0.09767922,2559.7,2559.2,0.55]
[1729695969272,0.08062637,2559.3,2559.2,1.331]
[1729695969470,3.57766371,2560.2,2559.2,1.331]
[1729695969688,0.7953,2560.3,2559.2,1.331]
[1729695969689,0.07795994,2559.3,2559.2,1.76996104]
[1729695969993,3.57766371,2560.2,2559.4,0.55]
[1729695970289,3.57766371,2560.2,2559.6,0.55]
[1729695970945,3.57766371,2560.2,2559.8,0.55]
[1729695971490,3.57766371,2560.4,2559.8,0.55]
[1729695971784,3.57766371,2560.2,2559.8,0.55]
[1729695972887,0.09765382,2560.4,2559.8,0.55]
[1729695972888,3.67531753,2560.4,2560.0,0.55]
[1729695973086,3.57766371,2560.6,2560.0,0.62812148]
[1729695973401,3.57766371,2560.6,2560.0,0.55]
[1729695973686,3.57766371,2560.4,2560.0,0.55]
[1729695974196,0.09765042,2560.3,2560.0,0.55]
[1729695974482,0.07553801,2560.3,2560.0,0.55]
[1729695974990,0.07553801,2560.3,2559.7,0.05859806]
[1729695974991,3.57766371,2560.2,2559.8,0.55]
[1729695975159,3.57766371,2560.0,2559.7,0.05859806]
[1729695975364,0.0976699,2559.9,2559.7,0.05859806]
[1729695975564,0.17334867,2559.9,2559.7,0.05859806]
[1729695975765,3.57766371,2559.8,2559.7,0.05859806]
[1729695976179,3.57766371,2560.0,2559.7,0.05859806]
[1729695976350,0.07567877,2559.8,2559.7,0.05859806]
[1729695976685,0.07548734,2559.8,2559.7,0.05859806]
[1729695977093,0.87018734,2559.8,2559.2,0.8004]
[1729695977248,3.57766371,2559.5,2559.1,0.05861044]
[1729695977450,0.09768646,2559.4,2559.1,0.05861044]
[1729695977665,0.07548734,2559.4,2559.1,0.05861044]
[1729695977887,3.67535164,2559.7,2559.1,0.05861044]
[1729695978152,0.07545354,2559.3,2559.1,0.05861044]
[1729695978455,3.67535164,2559.7,2559.1,0.05861044]
[1729695978652,0.07545354,2559.2,2559.1,0.05861044]
[1729695978882,3.67535164,2559.7,2559.1,0.05861044]
[1729695979097,0.07545354,2559.2,2559.1,0.05861044]
[1729695979269,3.67535164,2559.7,2559.1,0.05861044]
[1729695979463,0.07545354,2559.2,2559.1,0.05861044]
[1729695979659,3.57766371,2559.5,2559.1,0.05861044]
[1729695979862,3.57766371,2559.3,2559.1,0.05861044]
[1729695980093,0.07545354,2559.4,2559.1,0.05861044]
[1729695980279,0.09769105,2559.4,2559.1,0.05861044]
[1729695980531,0.07527327,2559.3,2559.1,0.05861044]
[1729695981282,0.17296725,2559.3,2559.1,0.05861044]
[1729695982259,0.07527327,2559.3,2559.1,0.05861044]
[1729695982480,0.7932,2559.2,2558.9,0.55]
[1729695982666,0.7932,2559.2,2558.5,0.7873]
[1729695982667,0.89089253,2559.2,2558.5,0.7873]
[1729695982876,0.07527327,2559.1,2558.5,0.7873]
[1729695983191,0.07527327,2559.1,2558.6,0.0586196]
[1729695983791,0.17297688,2559.1,2558.6,0.0586196]
[1729695984094,0.17297692,2559.1,2558.6,0.0586196]
[1729695985906,0.07527327,2559.1,2558.7,0.55]
[1729695986270,0.09769155,2559.4,2558.7,0.55]
[1729695986479,0.07525641,2559.0,2558.7,0.55]
[1729695986785,0.09769155,2559.4,2558.7,0.55]
[1729695986987,0.07525641,2558.9,2558.7,0.55]
[1729695987165,0.09769155,2559.4,2558.7,0.55]
[1729695987357,0.07526204,2558.8,2558.7,0.55]
[1729695987562,0.09769155,2559.4,2558.7,0.55]
[1729695987760,0.07526204,2558.8,2558.6,0.0586196]
[1729695987963,0.09770156,2559.2,2558.7,0.55]
[1729695988155,0.09770149,2559.4,2558.7,0.55]
[1729695988599,0.07526204,2559.3,2558.7,0.55]
[1729695988784,0.09769851,2559.2,2558.7,0.55]
[1729695989366,0.07526204,2559.1,2558.7,0.55]
[1729695990871,0.09769856,2559.4,2558.7,0.55]
[1729695991262,0.07526204,2559.3,2558.7,0.55]
[1729695991602,0.09769858,2559.2,2558.7,0.55]
[1729695992169,4.37946371,2559.5,2558.7,0.55]
[1729695992170,0.07526204,2559.1,2558.7,0.55]
[1729695992607,0.09769855,2559.4,2558.7,0.55]
[1729695992786,0.07526204,2559.0,2558.7,0.55]
[1729695992985,0.09769855,2559.4,2558.7,0.55]
[1729695993200,0.07526204,2558.9,2558.7,0.55]
[1729695993386,0.09769855,2559.4,2558.7,0.55]
[1729695993586,0.07526204,2558.8,2558.7,0.55]
[1729695993787,0.09769872,2559.2,2558.7,0.55]
[1729695993995,0.07526204,2558.8,2558.6,0.0586196]
[1729695994180,0.828,2559.1,2558.6,0.0586196]
[1729695994383,0.07526204,2558.7,2558.6,0.6086196]
[1729695995013,0.09770435,2559.0,2558.6,0.6086196]
[1729695995218,0.07527331,2558.7,2558.6,0.6086196]
[1729695995424,0.09770435,2559.0,2558.6,0.6086196]
[1729695995874,0.07527331,2558.9,2558.6,0.6086196]
[1729695996814,0.07527331,2558.9,2558.6,0.55]
[1729695997523,3.90808,2558.8,2558.6,0.55]
[1729695997722,3.98326881,2558.8,2558.6,0.55]
[1729695998294,0.07518881,2558.8,2558.6,0.55]
[1729695998489,0.07518881,2558.8,2558.6,1.47131634]
[1729696000722,3.90758,2559.2,2558.7,4.45823]
[1729696000884,3.90739,2559.3,2558.9,0.55]
[1729696001083,0.09769189,2559.2,2558.9,0.55]
[1729696001283,3.90747,2559.2,2558.9,0.55]
[1729696001583,7.81502,2559.2,2558.7,4.45821]
[1729696001803,3.90763,2559.1,2558.7,5.47158898]
[1729696002017,3.90747,2559.2,2558.7,5.47153898]
[1729696002486,3.84809527,2559.4,2558.7,1.56337898]
[1729696002691,0.84809527,2559.4,2558.6,0.55]
[1729696003112,0.09769527,2559.4,2558.9,0.8301]
[1729696003315,0.792,2559.6,2558.9,0.8301]
[1729696003316,0.09769193,2559.5,2559.0,0.0586118]
[1729696003623,0.07526768,2559.3,2559.0,0.0586118]
[1729696003821,0.07532401,2559.4,2559.0,0.0586118]
[1729696004029,0.09769193,2559.5,2559.0,0.0586118]
[1729696004193,0.07532401,2559.3,2559.0,0.0586118]
[1729696004397,0.09769193,2559.5,2558.9,0.8301]
[1729696004601,0.07532401,2559.2,2558.9,0.8301]
[1729696004783,3.67535564,2559.5,2558.6,0.7745]
[1729696004991,0.07535218,2559.1,2558.7,0.55]
[1729696005289,0.07535218,2559.0,2558.7,0.55]
[1729696005608,0.09769193,2559.5,2558.7,0.55]
[1729696005817,4.39876371,2560.0,2559.2,0.8111]
[1729696006014,0.09767284,2559.9,2559.3,0.55]
[1729696006192,3.57766371,2559.8,2559.3,0.55]
[1729696006534,0.09767823,2559.7,2559.2,0.8111]
[1729696007143,0.09767823,2559.7,2559.1,0.05860747]
[1729696007836,3.90741,2559.3,2559.1,0.05860747]
[1729696008731,3.90747,2559.2,2559.1,0.05860747]
[1729696009045,0.09769199,2559.2,2559.1,0.05860747]
[1729696009543,3.90747,2559.2,2559.1,0.05860747]
[1729696009699,4.00516273,2559.2,2558.9,0.55]
[1729696010907,3.90747,2559.2,2559.0,0.05860665]
[1729696011109,7.81504,2559.2,2559.0,0.05860665]
[1729696011641,3.90747,2559.2,2559.0,0.05860665]
[1729696012337,7.81504,2559.2,2559.0,0.05860665]
[1729696012546,3.90747,2559.2,2559.0,0.05860665]
[1729696013146,7.81506,2559.2,2559.0,0.05860665]
[1729696013310,3.90747,2559.2,2559.0,0.05860665]
[1729696014431,3.90748,2559.2,2559.0,0.05860665]
[1729696015716,3.90762,2559.1,2559.0,0.05860665]
[1729696015913,4.00531292,2559.1,2559.0,0.05860665]
[1729696017050,3.90748,2559.2,2559.0,0.05860665]
[1729696017237,3.90762,2559.1,2559.0,0.05860665]
[1729696018556,3.97571564,2559.1,2559.0,0.05860665]
[1729696020873,4.0734136,2559.1,2559.0,0.05860665]
[1729696021291,3.97571564,2559.1,2559.0,0.05860665]
[1729696022086,4.07341364,2559.1,2559.0,0.05860665]
[1729696022388,4.07341364,2559.1,2559.0,0.31335118]
[1729696022574,4.07341364,2559.1,2559.0,0.24441753]
[1729696022978,4.0734134,2559.1,2559.0,0.24441753]
[1729696023278,4.0734134,2559.1,2558.8,0.781]
[1729696023279,3.90784,2559.0,2558.8,0.781]
[1729696023479,3.90784,2559.0,2558.9,0.24442658]
[1729696023651,4.00553821,2559.0,2558.9,0.24443697]
[1729696023853,4.07363385,2559.0,2558.9,0.24443697]
[1729696025288,8.42479756,2559.0,2558.9,0.31338727]
[1729696025490,8.32709935,2559.0,2558.9,0.24443697]
[1729696026406,8.32709935,2559.0,2558.9,0.31338727]
[1729696026928,8.32702935,2559.0,2558.9,0.31342012]
[1729696027221,0.06809564,2559.0,2558.9,0.24448837]
[1729696027927,0.06809564,2559.0,2558.9,5.45980837]
[1729696028084,3.90666,2559.8,2558.9,6.09175878]
[1729696028284,0.06122084,2559.7,2559.4,0.55]
[1729696028583,0.09767251,2559.8,2559.5,0.24448837]
[1729696028787,0.06123215,2559.6,2559.4,0.55]
[1729696029032,4.00423251,2559.8,2559.6,0.24436083]
[1729696029197,7.91089251,2559.8,2559.7,0.24436083]
[1729696029394,3.90656,2559.8,2559.7,0.24436083]
[1729696029597,0.09767337,2559.8,2559.7,0.24436083]
[1729696029796,11.01,2559.9,2559.7,0.24436083]
[1729696030117,7.50582825,2561.0,2559.4,4.45706]
[1729696030118,11.01,2560.0,2559.9,5.219]
[1729696030331,11.01,2560.0,2559.9,1.55696083]
[1729696030625,14.58766371,2560.0,2559.9,0.24436083]
[1729696030865,18.49391371,2560.0,2559.9,0.24436083]
[1729696031013,14.58766371,2560.0,2559.9,0.24436083]
[1729696031215,14.58766371,2560.0,2559.9,5.56564259]
[1729696031216,11.01,2560.0,2559.9,5.56564259]
[1729696031456,11.01,2560.0,2559.9,2.22362012]
[1729696032129,11.01,2560.0,2559.9,1.65924259]
[1729696032445,11.01,2560.0,2559.9,1.10924259]
[1729696033565,11.06622238,2560.0,2559.9,5.56559112]
[1729696034064,11.06622238,2560.0,2559.9,1.65919112]
[1729696034265,11.06622238,2560.0,2559.9,0.30289112]
[1729696034554,14.97247238,2560.0,2559.9,0.37160521]
[1729696034762,14.97247238,2560.0,2559.9,0.30289112]
[1729696036222,11.06622238,2560.0,2559.9,0.30289112]
[1729696036983,14.97247238,2560.0,2559.9,0.30289112]
[1729696037765,11.06622238,2560.0,2559.9,1.09049112]
[1729696039065,11.06622238,2560.0,2559.9,5.57219473]
[1729696039276,0.05622238,2560.0,2559.9,5.50348064]
[1729696039622,0.09764342,2560.5,2560.1,3.90597]
[1729696039851,0.09764342,2560.5,2560.2,0.24430936]
[1729696039852,4.00314342,2560.5,2560.2,0.24430936]
[1729696040064,0.05450354,2560.4,2560.3,0.24430936]
[1729696040465,0.05450354,2560.4,2560.3,0.24429406]
[1729696041866,0.05450354,2560.4,2560.3,1.00369406]
[1729696042170,3.90535,2560.6,2560.3,1.89210837]
[1729696042478,0.05476369,2560.4,2560.3,1.64781431]
[1729696042689,3.90535,2560.6,2560.3,1.89210699]
[1729696042884,0.05476369,2560.4,2560.3,1.64781431]
[1729696043063,3.90535,2560.6,2560.3,1.89210688]
[1729696043263,0.05476369,2560.4,2560.3,5.55360431]
[1729696043462,17.91434,2561.3,2560.3,1.970212]
[1729696043463,8.29019371,2561.2,2560.3,1.970212]
[1729696043662,3.90504,2560.8,2560.4,0.24428807]
[1729696043957,3.57766371,2561.0,2560.4,0.24428807]
[1729696043958,3.90489,2560.9,2560.5,0.24428807]
[1729696044182,3.90504,2560.8,2560.6,0.24428807]
[1729696044534,3.90489,2560.9,2560.4,4.04224147]
[1729696044801,3.90473,2561.0,2560.5,4.14971525]
[1729696044965,3.90473,2561.0,2560.6,1.00085525]
[1729696045165,4.71243,2561.2,2560.7,0.24425525]
[1729696045363,3.90419,2561.4,2560.6,0.83470089]
[1729696045364,3.90412,2561.4,2560.9,3.90478]
[1729696045557,4.00194063,2561.3,2560.9,0.757]
[1729696045971,4.00194063,2561.3,2561.0,0.2442108]
[1729696046203,4.00194063,2561.3,2560.9,4.66184]
[1729696046370,3.90433,2561.3,2561.0,0.24421018]
[1729696046571,3.90433,2561.3,2560.9,4.66184]
[1729696046905,3.90385,2561.6,2561.1,3.90448]
[1729696047111,4.37316371,2561.7,2561.2,0.24419679]
[1729696047112,4.6993,2561.7,2561.2,0.24419679]
[1729696047307,4.6993,2561.7,2560.9,5.58397792]
[1729696047308,3.90418,2561.4,2560.9,5.58397792]
[1729696047518,3.90418,2561.4,2561.0,0.31274239]
[1729696047809,3.90418,2561.4,2561.1,0.24419847]
[1729696047992,3.90418,2561.4,2561.2,0.24419847]
[1729696048339,3.90405,2561.5,2561.3,0.24419847]
[1729696048510,3.90405,2561.5,2561.4,0.24419847]
[1729696048711,3.90336,2561.9,2561.4,4.90635847]
[1729696048911,3.90326,2562.0,2561.5,4.14806847]
[1729696049114,4.00094989,2561.9,2561.6,0.24419847]
[1729696049407,4.00094989,2561.9,2561.4,5.22133977]
[1729696049408,4.00094989,2561.9,2561.7,0.24419847]
[1729696049612,4.00094989,2561.9,2561.8,0.24419847]
[1729696049613,0.09758989,2561.9,2561.8,0.24419847]
[1729696049813,3.90314,2562.1,2561.8,0.24419847]
[1729696050098,3.9032,2562.0,2561.9,0.24419847]
[1729696050305,4.0007809,2562.0,2561.9,0.24419847]
[1729696050639,3.90381,2561.6,2561.5,0.05855606]
[1729696050800,7.57907973,2561.6,2561.5,0.30274862]
[1729696051298,7.48147371,2561.6,2561.5,0.30274862]
[1729696051527,3.90441,2561.2,2561.1,0.06854392]
[1729696051727,3.90441,2561.2,2561.1,0.24421928]
[1729696051929,4.00202857,2561.2,2561.1,0.24421928]
[1729696052456,4.00202857,2561.2,2561.1,0.3127632]
[1729696052802,3.90441,2561.2,2561.1,0.3127632]
[1729696053112,3.90412,2561.4,2561.1,0.3127632]
[1729696053330,4.00158871,2561.5,2561.2,0.3127632]
[1729696053505,3.90414,2561.4,2561.2,0.3127632]
[1729696053706,4.00174789,2561.4,2561.3,0.3127632]
[1729696054640,4.00174789,2561.4,2561.3,0.24421928]
[1729696054943,4.00174789,2561.4,2561.3,0.3127632]
[1729696055253,4.00174789,2561.4,2561.3,0.24421928]
[1729696055430,4.00174789,2561.4,2561.3,0.3127632]
[1729696057050,4.00174789,2561.4,2561.3,0.24421928]
[1729696057254,4.00174789,2561.4,2561.3,0.31272435]
[1729696057462,0.09760789,2561.4,2560.9,0.83997002]
[1729696057612,0.09760789,2561.4,2561.0,0.24422461]
[1729696057613,3.90457,2561.1,2561.0,0.24422461]
[1729696057812,7.57985304,2561.1,2561.0,0.24422461]
[1729696058320,4.00218933,2561.1,2561.0,0.24422461]
[1729696058955,7.57985304,2561.1,2561.0,0.24422461]
[1729696059358,4.00218933,2561.1,2561.0,0.24422461]
[1729696059947,3.90444,2561.2,2561.0,0.24422461]
[1729696060143,3.90472,2561.0,2560.9,0.769]
[1729696060472,3.90472,2561.0,2560.9,1.0132327]
[1729696061126,3.90472,2561.0,2560.9,0.2442327]
[1729696061569,3.90457,2561.1,2560.9,0.2442327]
[1729696061771,3.90457,2561.1,2561.0,0.2442327]
[1729696063634,3.94929289,2561.1,2561.0,0.2442327]
[1729696063835,4.04692127,2561.1,2561.0,0.2442327]
[1729696064346,3.94929289,2561.1,2560.7,0.8664704]
[1729696064546,3.90487,2560.9,2560.8,0.24423898]
[1729696065174,8.3031566,2560.9,2560.8,0.24423898]
[1729696065383,11.3031566,2560.9,2560.8,0.24423898]
[1729696065550,11.3031566,2560.9,2560.8,0.31293214]
[1729696065748,11.3031566,2560.9,2560.8,8.98e-06]
[1729696065749,11.3131566,2560.9,2560.8,8.98e-06]
[1729696065946,0.7759,2560.7,2560.5,0.06869316]
[1729696066273,7.04755552,2560.6,2560.5,0.06869316]
[1729696066567,7.04755552,2560.6,2559.3,3.90723]
[1729696066568,7.68153,2560.4,2560.3,0.06869316]
[1729696066777,3.90579,2560.3,2560.2,0.0686682]
[1729696066949,4.00346143,2560.3,2560.2,0.0686682]
[1729696067148,7.04781691,2560.3,2560.2,0.0686682]
[1729696067339,3.90594,2560.2,2560.1,0.0686682]
[1729696067541,3.90701,2559.5,2559.4,0.36653795]
[1729696067743,3.95136548,2559.5,2559.4,0.36653795]
[1729696068040,3.95136548,2559.5,2559.3,0.769]
[1729696068041,3.90716,2559.4,2559.3,0.769]
[1729696068345,4.04838179,2559.4,2559.0,4.66855]
[1729696068540,4.04838179,2559.4,2559.1,0.36657113]
[1729696068848,3.95070102,2559.4,2559.0,4.66855]
[1729696069058,3.95070102,2559.4,2559.1,0.36657583]
[1729696069250,3.95070102,2559.4,2559.1,0.50351258]
[1729696069584,0.04354102,2559.4,2559.1,4.41112258]
[1729696069872,3.90694,2559.6,2559.1,4.41112258]
[1729696070076,0.04352971,2559.3,2559.1,4.41112258]
[1729696070278,3.90694,2559.6,2559.1,4.41102258]
[1729696070591,3.90671,2559.7,2559.2,1.39959485]
[1729696070831,3.90671,2559.7,2559.3,3.90729]
[1729696070982,3.90671,2559.7,2559.2,1.39959485]
[1729696071287,3.90698,2559.6,2559.2,1.39959485]
[1729696071437,3.90671,2559.7,2559.2,1.39959485]
[1729696071438,7.81352,2559.7,2559.2,5.30699485]
[1729696071641,7.81352,2559.7,2559.3,0.92926468]
[1729696071962,3.90686,2559.6,2559.3,0.92926468]
[1729696072677,3.90671,2559.7,2559.3,0.92926468]
[1729696073045,3.90671,2559.7,2559.3,4.83655468]
[1729696073249,7.81351,2559.7,2559.3,0.92926468]
[1729696073446,3.90671,2559.7,2559.6,0.06811453]
[1729696073781,3.90671,2559.7,2559.6,0.31247172]
[1729696074250,4.00438688,2559.7,2559.6,0.24435948]
[1729696074804,7.58205059,2559.7,2559.6,0.24435948]
[1729696076699,8.37785059,2559.7,2559.6,0.24435948]
[1729696076882,8.37785059,2559.7,2559.4,0.06811224]
[1729696076883,3.90731,2559.3,2559.1,0.06811224]
[1729696077088,4.00516268,2559.2,2559.1,0.06811224]
[1729696077411,4.00516268,2559.2,2559.1,0.24441836]
[1729696077611,4.00516268,2559.2,2559.1,0.3125306]
[1729696078193,4.00516268,2559.2,2559.1,0.3124082]
[1729696078921,0.04321285,2559.2,2559.1,0.3124082]
[1729696079078,0.04321285,2559.2,2559.1,0.24440705]
[1729696079411,0.04301478,2559.2,2559.1,0.24440705]
[1729696079709,3.90717,2559.4,2559.1,0.24440705]
[1729696079915,0.04299781,2559.2,2559.0,0.05860817]
[1729696080224,3.90717,2559.4,2559.1,0.24440272]
[1729696080513,3.90718,2559.4,2559.3,0.06803685]
[1729696080719,3.90679,2559.7,2559.4,0.8264]
[1729696080882,0.09768313,2559.6,2559.5,0.24438844]
[1729696081199,3.90679,2559.7,2559.5,0.24438844]
[1729696081401,3.90688,2559.6,2559.4,0.89442069]
[1729696081612,4.00456275,2559.6,2559.5,0.24437602]
[1729696082711,4.00454275,2559.6,2559.5,0.24440695]
[1729696082908,0.09768275,2559.6,2559.1,0.06802069]
[1729696083194,3.9074,2559.3,2559.2,0.31243142]
[1729696083394,4.00509158,2559.3,2559.2,0.31243142]
[1729696083825,4.00509158,2559.3,2559.2,0.24441073]
[1729696084006,4.00509158,2559.3,2559.0,0.05860817]
[1729696084180,4.00509158,2559.3,2559.1,0.31248383]
[1729696084381,4.00509158,2559.3,2559.2,0.24441022]
[1729696085203,3.90719,2559.4,2559.2,0.31248383]
[1729696085381,3.90719,2559.4,2559.3,0.24441022]
[1729696086618,4.00488105,2559.4,2559.3,0.24441022]
[1729696088612,4.00488105,2559.4,2559.3,0.31248383]
[1729696090422,4.00488105,2559.4,2559.3,0.24441022]
[1729696090805,4.00488105,2559.4,2559.3,0.31262164]
[1729696091211,4.00488105,2559.4,2559.3,0.24441022]
[1729696091413,7.58254476,2559.4,2559.3,0.24441022]
[1729696091740,7.58254476,2559.4,2559.3,0.31267662]
[1729696092416,7.58254476,2559.4,2559.3,0.24441022]
[1729696093630,7.62554821,2559.4,2559.3,0.24441022]
[1729696094543,3.90746,2559.3,2559.0,0.05860817]
[1729696094745,0.09769269,2559.2,2559.0,0.05860817]
[1729696094966,0.09769269,2559.2,2559.1,0.61100136]
[1729696095315,4.00518269,2559.2,2559.1,0.61100136]
[1729696097751,3.90723,2559.4,2559.1,0.61100136]
[1729696098044,4.00491964,2559.4,2559.2,0.36660082]
[1729696098248,4.00491964,2559.4,2559.3,0.61099036]
[1729696098823,0.09768964,2559.4,2559.3,0.61099036]
[1729696099026,3.90705,2559.5,2559.3,0.61099036]
[1729696099219,3.90705,2559.5,2559.4,0.61099036]
[1729696099953,4.00473605,2559.5,2559.4,0.61099036]
[1729696100814,3.90649,2559.9,2559.4,0.61099036]
[1729696101045,3.90663,2559.8,2559.5,0.61099036]
[1729696101248,3.90663,2559.8,2559.3,4.72113]
[1729696101249,3.90663,2559.8,2559.6,0.61096092]
[1729696101448,4.00430291,2559.8,2559.7,0.61095485]
[1729696101748,3.90663,2559.8,2559.7,0.61095485]
[1729696102548,3.90648,2559.9,2559.7,0.66955223]
[1729696102851,3.90648,2559.9,2559.8,0.61095485]
[1729696103010,3.90648,2559.9,2559.8,0.24438954]
[1729696103409,4.00415146,2559.9,2559.8,0.24438954]
[1729696103809,7.48414371,2559.9,2559.8,0.24438954]
[1729696104629,3.90648,2559.9,2559.8,0.24438954]
[1729696105660,7.48382371,2560.1,2559.8,0.24438954]
[1729696105661,3.90616,2560.1,2559.8,0.24438954]
[1729696105857,3.90616,2560.1,2559.9,0.24438954]
[1729696105858,3.90633,2560.0,2559.9,0.24438954]
[1729696106029,3.90616,2560.1,2559.9,0.24438954]
[1729696106361,3.90616,2560.1,2560.0,0.24438954]
[1729696106656,3.90616,2560.1,2559.7,0.88719738]
[1729696106855,3.90625,2560.0,2559.8,0.61083329]
[1729696107054,3.90625,2560.0,2559.9,0.24433322]
[1729696107218,3.90612,2560.1,2559.9,0.24433322]
[1729696107556,4.00376305,2560.1,2559.7,1.75729812]
[1729696107722,3.9061,2560.1,2559.8,0.24433384]
[1729696108053,3.90549,2560.5,2560.1,0.7539]
[1729696108256,4.0033784,2560.4,2560.2,0.24433384]
[1729696108563,3.90579,2560.3,2560.1,0.7539]
[1729696108857,7.52581183,2560.3,2560.2,0.24430375]
[1729696109312,3.61991183,2560.3,2560.2,0.24430375]
[1729696109513,0.04224812,2560.3,2560.2,0.24430375]
[1729696110838,7.62335682,2560.3,2560.2,0.24430375]
[1729696112464,8.44545682,2560.3,2560.2,0.24430375]
[1729696112627,3.90625,2560.0,2559.7,0.12694164]
[1729696112953,0.140132,2559.9,2559.8,0.31269286]
[1729696113317,4.046532,2559.9,2559.8,0.2443486]
[1729696113748,7.62419571,2559.9,2559.8,0.2443486]
[1729696114264,4.046532,2559.9,2559.8,0.30294421]
[1729696115134,4.046532,2559.9,2559.8,0.05859561]
[1729696115334,4.046532,2559.9,2559.8,0.3029319]
[1729696115660,4.046532,2559.9,2559.8,0.30293214]
[1729696116245,0.04246307,2559.9,2559.8,0.30293214]
[1729696116546,0.04237253,2559.9,2559.8,0.37125848]
[1729696116945,3.90617,2560.1,2559.8,0.37125848]
[1729696117149,3.90617,2560.1,2559.8,0.12692195]
[1729696117383,0.04237253,2560.0,2559.9,0.24432805]
[1729696117583,4.04628441,2560.0,2559.9,0.24432805]
[1729696118650,4.04628441,2560.0,2559.5,0.7535]
[1729696118850,3.90647,2559.9,2559.7,0.06833661]
[1729696119046,4.0041424,2559.9,2559.8,0.24433836]
[1729696119251,4.04651493,2559.9,2559.8,0.24433836]
[1729696121164,4.04651493,2559.9,2559.8,0.31267497]
[1729696121165,0.04237253,2559.9,2559.8,0.31267497]
[1729696121463,0.14003788,2559.9,2559.8,0.31267497]
[1729696122001,0.04237253,2559.9,2559.8,0.24433836]
[1729696122197,0.04237253,2559.9,2559.8,0.31267497]
[1729696122358,3.94877253,2559.9,2559.8,0.24433836]
[1729696122564,0.04237253,2559.9,2559.8,0.31267497]
[1729696123963,0.09766528,2560.0,2559.8,0.31267497]
[1729696124159,4.00396528,2560.0,2559.9,0.31267497]
[1729696125070,4.00396528,2560.0,2559.9,0.24433836]
[1729696125673,4.00396528,2560.0,2559.9,0.24433456]
[1729696126496,3.57766371,2560.1,2559.9,0.24433456]
[1729696126497,3.67532877,2560.1,2559.9,0.24433456]
[1729696126690,3.90621,2560.1,2560.0,0.24433456]
[1729696127065,0.8328,2560.6,2560.1,0.7666]
[1729696127293,3.90556,2560.5,2560.2,0.31276218]
[1729696127466,3.90556,2560.5,2560.3,0.24433456]
[1729696127806,3.90556,2560.5,2560.4,0.24433456]
[1729696128099,4.00320483,2560.5,2560.4,0.24433456]
[1729696128296,3.90556,2560.5,2560.4,0.24433456]
[1729696128498,4.00320483,2560.5,2560.4,0.24433456]
[1729696129160,4.00320483,2560.5,2560.2,0.06849103]
[1729696129161,3.90586,2560.3,2560.2,0.06849103]
[1729696129503,3.90586,2560.3,2560.2,0.31279256]
[1729696129802,3.90564,2560.4,2560.2,0.24430153]
[1729696129984,0.09764859,2560.5,2560.3,0.31278858]
[1729696130304,0.09764283,2560.5,2560.4,0.24430153]
[1729696130504,3.90546,2560.6,2560.4,0.31278858]
[1729696130802,3.90546,2560.6,2560.5,0.24430153]
[1729696131917,0.8328,2561.1,2560.5,1.01090153]
[1729696132209,3.90441,2561.2,2560.8,0.06850756]
[1729696132707,3.90466,2561.1,2561.0,0.06850756]
[1729696132875,3.90466,2561.1,2561.0,0.24430153]
[1729696132876,7.5799565,2561.1,2561.0,0.24430153]
[1729696133376,7.5799565,2561.1,2561.0,0.24425453]
[1729696133563,8.4127565,2561.1,2561.0,0.24425453]
[1729696133768,8.4127565,2561.1,2560.8,0.05857382]
[1729696133769,3.90487,2560.9,2560.8,0.05857382]
[1729696133968,7.58016952,2560.9,2560.8,0.30284118]
[1729696134811,7.58016952,2560.9,2560.8,0.24426736]
[1729696134812,4.00250581,2560.9,2560.8,0.24426736]
[1729696135103,3.90548,2560.5,2560.4,0.06850756]
[1729696135305,4.00312701,2560.5,2560.4,0.24428378]
[1729696135462,4.00312724,2560.5,2560.4,0.24428378]
[1729696135663,4.83592724,2560.5,2560.4,0.24428378]
[1729696135911,4.83592724,2560.5,2560.1,0.05858608]
[1729696136068,3.90594,2560.2,2560.1,0.05858608]
[1729696136267,4.00359583,2560.2,2560.1,0.05858608]
[1729696136473,4.00359583,2560.2,2560.1,0.37134153]
[1729696137294,3.90594,2560.2,2560.1,0.37134153]
[1729696138317,4.00359552,2560.2,2560.1,0.37134153]
[1729696138609,4.04062364,2560.2,2560.1,0.37134153]
[1729696139569,4.04062364,2560.2,2560.1,0.05858608]
[1729696139793,4.04062364,2560.2,2560.1,0.37138484]
[1729696140322,4.04062364,2560.2,2560.1,0.30291389]
[1729696140778,3.94296812,2560.2,2560.1,0.24432781]
[1729696141119,4.04064378,2560.2,2560.1,0.24431964]
[1729696141327,3.94298812,2560.2,2560.1,0.24431964]
[1729696141973,4.04064365,2560.2,2560.1,0.24431964]
[1729696142191,3.94298812,2560.2,2560.1,0.24431964]
[1729696142516,4.04064383,2560.2,2560.1,0.24431964]
[1729696143282,3.94298812,2560.2,2560.1,0.24431964]
[1729696143979,4.04064389,2560.2,2560.1,0.24431964]
[1729696145118,0.03702812,2560.2,2560.1,0.24431964]
[1729696145319,4.04062378,2560.2,2560.1,0.24431964]
[1729696145507,4.00359566,2560.2,2560.1,0.24431964]
[1729696145815,3.94134984,2560.2,2560.0,0.05858954]
[1729696146023,3.94134984,2560.2,2560.1,0.24431973]
[1729696147242,4.03900556,2560.2,2559.8,0.7732]
[1729696147382,3.90622,2560.1,2559.9,0.06847327]
[1729696147581,3.90622,2560.1,2560.0,0.24432585]
[1729696147781,0.03540984,2560.1,2560.0,0.24432585]
[1729696147989,3.90586,2560.3,2560.0,0.24432585]
[1729696147990,4.00366588,2560.2,2560.0,0.24432585]
[1729696148317,3.90625,2560.0,2559.9,0.06847327]